fUST/lending_fUST_20240121
["ID","MTS","AMOUNT","RATE_DAILY","PERIOD"]
[312381203,1705847446805,-500.0,0.00027945,2]
[312381204,1705847446814,-1196.17,0.00027945,2]
[312381205,1705847446822,-9075.70263418,0.00027945,2]
[312381206,1705847498802,-200.0,0.00021999,7]
[312381207,1705847498826,-93.0,0.00022,4]
[312381208,1705847536598,-200.0,0.00022,4]
[312381211,1705847705221,-154.73694719,0.00021999,4]
[312381212,1705847705246,-0.39580768,0.00022,4]
[312381213,1705847761444,-1114.30379801,0.00019999,2]
[312381214,1705847761468,-154.89103878,0.0002,2]
[312381215,1705847761492,-155.46095755,0.0002,2]
[312381216,1705847761521,-581.7576878,0.0002,2]
[312381217,1705847761545,-193.58651786,0.0002,2]
[312381219,1705847786288,-76.12659839,0.0002,2]
[312381220,1705847879660,923.87340161,0.0002,2]
[312381221,1705847913156,9585.194753,0.000155,2]
[312381222,1705847913182,414.805247,0.000155,2]
[312381223,1705847924500,9585.194753,0.000155,2]
[312381224,1705847925358,-406.50914206,0.000155,2]
[312381225,1705847925523,-8.29610494,0.000155,2]
[312381226,1705847936228,10000.0,0.00015,2]
[312381228,1705847948159,10000.0,0.000145,2]
[312381229,1705847956580,10000.0,0.000145,2]
[312381230,1705847964576,10000.0,0.00014,2]
[312381231,1705847974521,10000.0,0.000136,2]
[312381232,1705847982260,10000.0,0.000135,2]
[312381234,1705848008943,-1582.04283476,0.00019996,2]
[312381235,1705848008968,-1741.95716524,0.00019997,2]
[312381243,1705848200335,-154.73694719,0.00019996,3]
[312381259,1705848393087,-154.73694719,0.00019997,2]
[312381260,1705848393108,-158.65845711,0.00019998,2]
[312381262,1705848449084,-955.6453409,0.00019998,2]
[312381263,1705848449105,-557.14987293,0.00019999,2]
[312381264,1705848454096,-2181.70697716,0.00019999,2]
[312381265,1705848543429,154.73694719,0.00019898,3]
[312381634,1705848637900,-168.871397,0.0001956,2]
[312381635,1705848637910,-163.5644823,0.00019899,2]
[312381636,1705848637919,-1001.92927764,0.00019998,2]
[312381637,1705848637929,-7795.84602744,0.00019999,2]
[312381638,1705848637939,-9076.12659839,0.0002,2]
[312381639,1705848637949,-850.12372754,0.0002,2]
[312381640,1705848637959,-678.4765603,0.0002,2]
[312381641,1705848637968,-1468.00454349,0.00020471,2]
[312381642,1705848637978,-177.90237609,0.00020698,2]
[312381643,1705848637987,-323.06508436,0.00020699,2]
[312381644,1705848637996,-24900.0,0.00020702,2]
[312381645,1705848638005,-174.159642,0.00020813,2]
[312381646,1705848638015,-327.4401691,0.00021917,2]
[312381647,1705848638024,-166.666666,0.00021918,2]
[312381648,1705848638034,-200.0,0.00021998,7]
[312381649,1705848638043,-1825.57072994,0.00022,2]
[312381650,1705848638052,-293.39580768,0.00022,4]
[312381651,1705848638061,-3967.54249474,0.00022,2]
[312381652,1705848638071,-425.88213647,0.0002243,2]
[312381653,1705848638081,-166.666666,0.00022431,2]
[312381654,1705848638090,-1114.30379801,0.00022943,2]
[312381655,1705848638099,-166.666666,0.00022944,2]
[312381656,1705848638109,-1571.13875008,0.00023,2]
[312381657,1705848638118,-154.73694719,0.00023455,4]
[312381658,1705848638127,-166.666666,0.00023456,2]
[312381659,1705848638136,-166.666666,0.00023969,2]
[312381660,1705848638145,-4013.17086376,0.00024,2]
[312381661,1705848638154,-280.0,0.00024198,7]
[312381662,1705848638164,-166.666666,0.00024482,2]
[312381663,1705848638173,-171.333859,0.00024599,2]
[312381664,1705848638181,-237.57908484,0.00025,2]
[312381665,1705848638190,-1046.11952043,0.00025,2]
[312381666,1705848638200,-1509.63250953,0.00025834,2]
[312381668,1705848638209,-391.0,0.00026617,15]
[312381670,1705848638218,-6651.02,0.00027265,3]
[312381671,1705848638227,-7981.22,0.00027275,3]
[312381672,1705848638235,-9577.47,0.00027285,3]
[312381674,1705848638244,-5022.45,0.00027287,3]
[312381676,1705848638253,-154.98504397,0.00027295,2]
[312381679,1705848638264,-211.49658438,0.00027295,2]
[312381681,1705848638276,-163.09864906,0.00027295,2]
[312381683,1705848638288,-526.64913826,0.00027295,2]
[312381686,1705848638300,-154.73694719,0.00027295,2]
[312381688,1705848638311,-1203.32131945,0.00027295,2]
[312381690,1705848638323,-160.99075113,0.00027295,2]
[312381692,1705848638334,-1330.96843871,0.00027295,2]
[312381695,1705848638344,-268.67464847,0.00027295,2]
[312381697,1705848638354,-1259.06955194,0.00027296,2]
[312381699,1705848638364,-276000.0,0.00027297,2]
[312381701,1705848638375,-468.92844637,0.00027397,2]
[312381703,1705848638386,-500.0,0.00027397,2]
[312381706,1705848638397,-513.59597525,0.00027397,2]
[312381708,1705848638409,-500.0,0.00027397,2]
[312381710,1705848638420,-500.0,0.00027397,2]
[312381712,1705848638430,-500.0,0.00027397,2]
[312381715,1705848638442,-500.0,0.00027397,2]
[312381717,1705848638452,-208.89958626,0.00027397,2]
[312381719,1705848638463,-547.95,0.00027397,2]
[312381721,1705848638475,-500.0,0.00027397,2]
[312381724,1705848638486,-500.0,0.00027397,2]
[312381726,1705848638495,-500.0,0.00027397,2]
[312381728,1705848638505,-500.0,0.00027397,2]
[312381730,1705848638516,-500.0,0.00027397,2]
[312381732,1705848638527,-500.0,0.00027397,2]
[312381734,1705848638537,-500.0,0.00027397,2]
[312381736,1705848638547,-500.0,0.00027397,2]
[312381739,1705848638558,-1204.98,0.00027397,2]
[312381741,1705848638569,-1517.1,0.00027397,2]
[312381743,1705848638579,-500.0,0.00027397,2]
[312381745,1705848638590,-500.0,0.00027397,2]
[312381747,1705848638600,-653.07,0.00027397,2]
[312381749,1705848638612,-500.0,0.00027397,2]
[312381752,1705848638623,-500.0,0.00027397,2]
[312381754,1705848638634,-500.0,0.00027397,2]
[312381756,1705848638644,-500.0,0.00027397,2]
[312381758,1705848638654,-500.0,0.00027397,2]
[312381760,1705848638664,-500.0,0.00027397,2]
[312381762,1705848638674,-500.0,0.00027397,2]
[312381765,1705848638687,-177.60771523,0.00027397,2]
[312381767,1705848638698,-500.0,0.00027397,2]
[312381769,1705848638709,-500.0,0.00027397,2]
[312381771,1705848638719,-500.0,0.00027397,2]
[312381774,1705848638731,-500.0,0.00027397,2]
[312381776,1705848638744,-500.0,0.00027397,2]
[312381778,1705848638755,-500.0,0.00027397,2]
[312381780,1705848638764,-500.0,0.00027397,2]
[312381782,1705848638775,-500.0,0.00027397,2]
[312381784,1705848638786,-500.0,0.00027397,2]
[312381786,1705848638797,-1000.0,0.00027397,2]
[312381789,1705848638808,-500.0,0.00027397,2]
[312381791,1705848638820,-580.65,0.00027397,2]
[312381793,1705848638830,-500.0,0.00027397,2]
[312381795,1705848638842,-500.0,0.00027397,2]
[312381797,1705848638853,-684.23,0.00027397,2]
[312381800,1705848638866,-500.0,0.00027397,2]
[312381802,1705848638878,-500.0,0.00027397,2]
[312381804,1705848638890,-500.0,0.00027397,2]
[312381806,1705848638901,-500.0,0.00027397,2]
[312381809,1705848638919,-500.0,0.00027397,2]
[312381811,1705848638930,-1346.72,0.00027397,2]
[312381813,1705848638939,-500.0,0.00027397,2]
[312381815,1705848638949,-291.13137368,0.00027397,2]
[312381817,1705848638959,-500.0,0.00027397,2]
[312381819,1705848638968,-500.0,0.00027397,2]
[312381821,1705848638978,-500.0,0.00027397,2]
[312381823,1705848638989,-632.56,0.00027397,2]
[312381826,1705848638999,-500.0,0.00027397,2]
[312381828,1705848639010,-151.44619477,0.00027397,2]
[312381830,1705848639021,-500.0,0.00027397,2]
[312381832,1705848639032,-500.0,0.00027397,2]
[312381834,1705848639041,-500.0,0.00027397,2]
[312381836,1705848639052,-500.0,0.00027397,2]
[312381838,1705848639064,-500.0,0.00027397,2]
[312381841,1705848639074,-500.0,0.00027397,2]
[312381843,1705848639084,-500.0,0.00027397,2]
[312381845,1705848639094,-500.0,0.00027397,2]
[312381847,1705848639104,-500.0,0.00027397,2]
[312381849,1705848639113,-500.0,0.00027397,2]
[312381851,1705848639123,-500.0,0.00027397,2]
[312381853,1705848639133,-500.0,0.00027397,2]
[312381855,1705848639143,-500.0,0.00027397,2]
[312381857,1705848639153,-503.44840265,0.00027397,2]
[312381859,1705848639163,-500.0,0.00027397,2]
[312381861,1705848639174,-500.0,0.00027397,2]
[312381864,1705848639184,-725.88,0.00027397,2]
[312381866,1705848639194,-500.0,0.00027397,2]
[312381868,1705848639204,-500.0,0.00027397,2]
[312381870,1705848639215,-506.47,0.00027397,2]
[312381872,1705848639225,-500.0,0.00027397,2]
[312381874,1705848639235,-500.0,0.00027397,2]
[312381876,1705848639245,-1116.87,0.00027397,2]
[312381878,1705848639255,-500.0,0.00027397,2]
[312381881,1705848639265,-202.45040566,0.00027397,2]
[312381883,1705848639275,-500.0,0.00027397,2]
[312381885,1705848639285,-500.0,0.00027397,2]
[312381887,1705848639295,-1290.78,0.00027397,2]
[312381889,1705848639305,-16023.83,0.00027397,2]
[312381891,1705848639314,-500.0,0.00027397,2]
[312381893,1705848639324,-1607.63,0.00027397,2]
[312381895,1705848639334,-3988.49,0.00027397,2]
[312381897,1705848639344,-500.0,0.00027397,2]
[312381899,1705848639354,-500.0,0.00027397,2]
[312381901,1705848639364,-500.0,0.00027397,2]
[312381903,1705848639374,-580.08,0.00027397,2]
[312381906,1705848639384,-500.0,0.00027397,2]
[312381908,1705848639394,-1285.19,0.00027397,2]
[312381910,1705848639404,-500.0,0.00027397,2]
[312381912,1705848639414,-858.2,0.00027397,2]
[312381914,1705848639425,-586.76,0.00027397,2]
[312381916,1705848639435,-155.0,0.00027397,2]
[312381918,1705848639446,-500.0,0.00027397,2]
[312381921,1705848639456,-500.0,0.00027397,2]
[312381923,1705848639466,-285.31719829,0.00027397,2]
[312381925,1705848639476,-500.0,0.00027397,2]
[312381927,1705848639486,-9533.96,0.00027397,2]
[312381929,1705848639496,-500.0,0.00027397,2]
[312381931,1705848639506,-500.0,0.00027397,2]
[312381933,1705848639515,-5454.13,0.00027397,2]
[312381935,1705848639526,-237.28341523,0.00027397,2]
[312381937,1705848639536,-500.0,0.00027397,2]
[312381939,1705848639545,-500.0,0.00027397,2]
[312381942,1705848639557,-500.0,0.00027397,2]
[312381944,1705848639567,-500.0,0.00027397,2]
[312381946,1705848639576,-500.0,0.00027397,2]
[312381948,1705848639586,-1315.31,0.00027397,2]
[312381950,1705848639596,-500.0,0.00027397,2]
[312381952,1705848639606,-500.0,0.00027397,2]
[312381954,1705848639616,-500.0,0.00027397,2]
[312381956,1705848639626,-799.63,0.00027397,2]
[312381958,1705848639636,-687.55,0.00027397,2]
[312381961,1705848639646,-871.22,0.00027397,2]
[312381963,1705848639656,-500.0,0.00027397,2]
[312381965,1705848639665,-971.85,0.00027397,2]
[312381967,1705848639676,-815.18,0.00027397,2]
[312381969,1705848639686,-739.3,0.00027397,2]
[312381971,1705848639697,-3720.64,0.00027397,2]
[312381973,1705848639706,-5927.86,0.00027397,2]
[312381975,1705848639716,-4979.39,0.00027397,2]
[312381977,1705848639726,-500.0,0.00027397,2]
[312381979,1705848639738,-655.0,0.00027397,2]
[312381981,1705848639748,-1985.29,0.00027397,2]
[312381983,1705848639758,-500.0,0.00027397,2]
[312381985,1705848639768,-1138.8,0.00027397,2]
[312381988,1705848639779,-500.0,0.00027397,2]
[312382019,1705848639946,-969.69,0.00027397,2]
[312382022,1705848639960,-500.0,0.00027397,2]
[312382026,1705848639971,-500.0,0.00027397,2]
[312382028,1705848639981,-2664.76,0.00027397,2]
[312382031,1705848639991,-500.0,0.00027397,2]
[312382035,1705848640001,-500.0,0.00027397,2]
[312382037,1705848640011,-500.0,0.00027397,2]
[312382038,1705848640021,-500.0,0.00027397,2]
[312382039,1705848640031,-500.0,0.00027397,2]
[312382040,1705848640042,-500.0,0.00027397,2]
[312382042,1705848640052,-989.98,0.00027397,2]
[312382044,1705848640062,-500.0,0.00027397,2]
[312382046,1705848640072,-234.05683702,0.00027671,2]
[312382048,1705848640081,-500.0,0.00027671,2]
[312382050,1705848640091,-387.69861089,0.00027671,2]
[312382052,1705848640101,-547.95,0.00027671,2]
[312382054,1705848640111,-500.0,0.00027671,2]
[312382056,1705848640120,-295.79059734,0.00027671,2]
[312382059,1705848640130,-500.0,0.00027671,2]
[312382060,1705848640140,-500.0,0.00027671,2]
[312382062,1705848640149,-500.0,0.00027671,2]
[312382064,1705848640158,-500.0,0.00027671,2]
[312382066,1705848640167,-1204.98,0.00027671,2]
[312382069,1705848640176,-1517.1,0.00027671,2]
[312382072,1705848640185,-494.92066183,0.00027671,2]
[312382075,1705848640194,-500.0,0.00027671,2]
[312382078,1705848640204,-653.07,0.00027671,2]
[312382081,1705848640213,-500.0,0.00027671,2]
[312382084,1705848640222,-530.89378445,0.00027671,2]
[312382088,1705848640232,-500.0,0.00027671,2]
[312382090,1705848640241,-500.0,0.00027671,2]
[312382093,1705848640250,-500.0,0.00027671,2]
[312382096,1705848640259,-500.0,0.00027671,2]
[312382099,1705848640268,-500.0,0.00027671,2]
[312382102,1705848640276,-500.0,0.00027671,2]
[312382105,1705848640285,-500.0,0.00027671,2]
[312382109,1705848640294,-436.1802005,0.00027671,2]
[312382112,1705848640303,-446.83956969,0.00027671,2]
[312382115,1705848640312,-500.0,0.00027671,2]
[312382117,1705848640321,-500.0,0.00027671,2]
[312382120,1705848640330,-500.0,0.00027671,2]
[312382123,1705848640338,-500.0,0.00027671,2]
[312382126,1705848640347,-500.0,0.00027671,2]
[312382129,1705848640356,-1000.0,0.00027671,2]
[312382132,1705848640365,-500.0,0.00027671,2]
[312382135,1705848640373,-580.65,0.00027671,2]
[312382138,1705848640382,-500.0,0.00027671,2]
[312382141,1705848640391,-500.0,0.00027671,2]
[312382144,1705848640400,-684.23,0.00027671,2]
[312382146,1705848640408,-178.51955219,0.00027671,2]
[312382149,1705848640417,-500.0,0.00027671,2]
[312382152,1705848640425,-500.0,0.00027671,2]
[312382154,1705848640434,-500.0,0.00027671,2]
[312382157,1705848640443,-500.0,0.00027671,2]
[312382160,1705848640451,-1346.72,0.00027671,2]
[312382162,1705848640459,-500.0,0.00027671,2]
[312382165,1705848640468,-500.0,0.00027671,2]
[312382168,1705848640477,-500.0,0.00027671,2]
[312382170,1705848640485,-490.94658652,0.00027671,2]
[312382171,1705848640494,-632.56,0.00027671,2]
[312382173,1705848640503,-500.0,0.00027671,2]
[312382174,1705848640511,-500.0,0.00027671,2]
[312382177,1705848640520,-500.0,0.00027671,2]
[312382179,1705848640528,-500.0,0.00027671,2]
[312382182,1705848640536,-500.0,0.00027671,2]
[312382184,1705848640544,-500.0,0.00027671,2]
[312382186,1705848640553,-500.0,0.00027671,2]
[312382189,1705848640561,-500.0,0.00027671,2]
[312382192,1705848640571,-500.0,0.00027671,2]
[312382194,1705848640579,-500.0,0.00027671,2]
[312382197,1705848640588,-500.0,0.00027671,2]
[312382199,1705848640597,-500.0,0.00027671,2]
[312382201,1705848640606,-500.0,0.00027671,2]
[312382203,1705848640614,-725.88,0.00027671,2]
[312382206,1705848640623,-500.0,0.00027671,2]
[312382209,1705848640632,-506.47,0.00027671,2]
[312382211,1705848640641,-500.0,0.00027671,2]
[312382213,1705848640649,-1116.87,0.00027671,2]
[312382215,1705848640658,-500.0,0.00027671,2]
[312382217,1705848640667,-500.0,0.00027671,2]
[312382220,1705848640676,-500.0,0.00027671,2]
[312382223,1705848640684,-1290.78,0.00027671,2]
[312382226,1705848640693,-16023.83,0.00027671,2]
[312382228,1705848640701,-500.0,0.00027671,2]
[312382231,1705848640710,-1607.63,0.00027671,2]
[312382234,1705848640719,-3988.49,0.00027671,2]
[312382237,1705848640731,-500.0,0.00027671,2]
[312382239,1705848640742,-500.0,0.00027671,2]
[312382241,1705848640752,-500.0,0.00027671,2]
[312382244,1705848640761,-580.08,0.00027671,2]
[312382247,1705848640772,-500.0,0.00027671,2]
[312382249,1705848640782,-1285.19,0.00027671,2]
[312382252,1705848640791,-500.0,0.00027671,2]
[312382255,1705848640801,-858.2,0.00027671,2]
[312382258,1705848640814,-586.76,0.00027671,2]
[312382262,1705848640825,-500.0,0.00027671,2]
[312382265,1705848640834,-500.0,0.00027671,2]
[312382268,1705848640843,-301.58285632,0.00027671,2]
[312382270,1705848640851,-9533.96,0.00027671,2]
[312382272,1705848640860,-500.0,0.00027671,2]
[312382275,1705848640869,-500.0,0.00027671,2]
[312382278,1705848640878,-5454.13,0.00027671,2]
[312382281,1705848640886,-500.0,0.00027671,2]
[312382283,1705848640895,-500.0,0.00027671,2]
[312382285,1705848640904,-500.0,0.00027671,2]
[312382287,1705848640912,-500.0,0.00027671,2]
[312382289,1705848640921,-1315.31,0.00027671,2]
[312382291,1705848640930,-500.0,0.00027671,2]
[312382293,1705848640939,-799.63,0.00027671,2]
[312382296,1705848640947,-687.55,0.00027671,2]
[312382299,1705848640956,-871.22,0.00027671,2]
[312382302,1705848640965,-500.0,0.00027671,2]
[312382305,1705848640974,-971.85,0.00027671,2]
[312382308,1705848640983,-815.18,0.00027671,2]
[312382311,1705848640992,-739.3,0.00027671,2]
[312382314,1705848641002,-3720.64,0.00027671,2]
[312382317,1705848641011,-5927.86,0.00027671,2]
[312382320,1705848641021,-4979.39,0.00027671,2]
[312382324,1705848641030,-500.0,0.00027671,2]
[312382327,1705848641040,-655.0,0.00027671,2]
[312382329,1705848641049,-1985.29,0.00027671,2]
[312382332,1705848641058,-500.0,0.00027671,2]
[312382335,1705848641068,-1138.8,0.00027671,2]
[312382338,1705848641077,-500.0,0.00027671,2]
[312382341,1705848641086,-969.69,0.00027671,2]
[312382344,1705848641095,-500.0,0.00027671,2]
[312382347,1705848641105,-500.0,0.00027671,2]
[312382351,1705848641114,-2664.76,0.00027671,2]
[312382354,1705848641123,-500.0,0.00027671,2]
[312382355,1705848641132,-500.0,0.00027671,2]
[312382359,1705848641142,-500.0,0.00027671,2]
[312382360,1705848641151,-500.0,0.00027671,2]
[312382363,1705848641160,-500.0,0.00027671,2]
[312382365,1705848641168,-500.0,0.00027671,2]
[312382367,1705848641177,-989.98,0.00027671,2]
[312382370,1705848641186,-500.0,0.00027671,2]
[312382373,1705848641195,-45623.87430511,0.00027924,5]
[312382375,1705848641205,-5000.0,0.00027924,5]
[312382378,1705848641214,-5000.0,0.00027924,5]
[312382380,1705848641223,-2073.50516209,0.00027934,2]
[312382383,1705848641232,-432.67930154,0.00027943,2]
[312382386,1705848641241,-2102.94542064,0.00027943,2]
[312382388,1705848641250,-256.78148257,0.00027943,2]
[312382390,1705848641258,-154.73695953,0.00027943,2]
[312382394,1705848641268,-679.94368878,0.00027943,2]
[312382396,1705848641277,-470.5887913,0.00027943,2]
[312382399,1705848641285,-561.24902807,0.00027943,2]
[312382401,1705848641295,-1424.81079794,0.00027943,2]
[312382404,1705848641303,-222.66563731,0.00027944,2]
[312382406,1705848641312,-500.0,0.00027944,2]
[312382408,1705848641322,-500.0,0.00027944,2]
[312382411,1705848641331,-391.00129162,0.00027944,2]
[312382413,1705848641340,-500.0,0.00027944,2]
[312382416,1705848641350,-500.0,0.00027944,2]
[312382420,1705848641360,-500.0,0.00027944,2]
[312382422,1705848641369,-312.36862439,0.00027944,2]
[312382424,1705848641377,-199.10001808,0.00027944,2]
[312382426,1705848641386,-500.0,0.00027944,2]
[312382429,1705848641395,-157.14633034,0.00027944,2]
[312382431,1705848641404,-197.73742757,0.00027944,2]
[312382434,1705848641413,-500.0,0.00027944,2]
[312382436,1705848641422,-500.0,0.00027944,2]
[312382439,1705848641431,-500.0,0.00027944,2]
[312382442,1705848641440,-500.0,0.00027944,2]
[312382444,1705848641450,-500.0,0.00027944,2]
[312382447,1705848641458,-500.0,0.00027944,2]
[312382449,1705848641467,-500.0,0.00027944,2]
[312382453,1705848641477,-500.0,0.00027944,2]
[312382456,1705848641486,-500.0,0.00027944,2]
[312382458,1705848641496,-500.0,0.00027944,2]
[312382461,1705848641505,-610.98263554,0.00027944,2]
[312382464,1705848641515,-279.09497102,0.00027944,2]
[312382466,1705848641525,-174.77500451,0.00027944,2]
[312382469,1705848641535,-763.82268996,0.00027945,2]
[312382471,1705848641544,-154.73694719,0.00027945,2]
[312382474,1705848641554,-3216.92126529,0.00027945,2]
[312382477,1705848641563,-261.52719804,0.00027945,2]
[312382478,1705848641574,-500.0,0.00027945,2]
[312382482,1705848641583,-547.95,0.00027945,2]
[312382484,1705848641593,-500.0,0.00027945,2]
[312382486,1705848641601,-500.0,0.00027945,2]
[312382489,1705848641611,-500.0,0.00027945,2]
[312382492,1705848641620,-500.0,0.00027945,2]
[312382494,1705848641629,-500.0,0.00027945,2]
[312382497,1705848641639,-1204.98,0.00027945,2]
[312382499,1705848641648,-1517.1,0.00027945,2]
[312382502,1705848641657,-500.0,0.00027945,2]
[312382505,1705848641666,-653.07,0.00027945,2]
[312382507,1705848641675,-500.0,0.00027945,2]
[312382511,1705848641685,-500.0,0.00027945,2]
[312382514,1705848641694,-500.0,0.00027945,2]
[312382516,1705848641704,-500.0,0.00027945,2]
[312382519,1705848641712,-500.0,0.00027945,2]
[312382521,1705848641722,-500.0,0.00027945,2]
[312382523,1705848641731,-500.0,0.00027945,2]
[312382526,1705848641742,-500.0,0.00027945,2]
[312382528,1705848641751,-500.0,0.00027945,2]
[312382530,1705848641760,-500.0,0.00027945,2]
[312382531,1705848641769,-500.0,0.00027945,2]
[312382533,1705848641780,-500.0,0.00027945,2]
[312382535,1705848641789,-1000.0,0.00027945,2]
[312382536,1705848641798,-500.0,0.00027945,2]
[312382538,1705848641808,-580.65,0.00027945,2]
[312382539,1705848641818,-500.0,0.00027945,2]
[312382541,1705848641828,-500.0,0.00027945,2]
[312382543,1705848641836,-684.23,0.00027945,2]
[312382544,1705848641845,-574.04952877,0.00027945,2]
[312382546,1705848641854,-500.0,0.00027945,2]
[312382547,1705848641863,-500.0,0.00027945,2]
[312382549,1705848641873,-1346.72,0.00027945,2]
[312382551,1705848641882,-500.0,0.00027945,2]
[312382552,1705848641892,-500.0,0.00027945,2]
[312382554,1705848641900,-500.0,0.00027945,2]
[312382555,1705848641910,-632.56,0.00027945,2]
[312382557,1705848641919,-500.0,0.00027945,2]
[312382559,1705848641928,-500.0,0.00027945,2]
[312382560,1705848641937,-500.0,0.00027945,2]
[312382562,1705848641947,-500.0,0.00027945,2]
[312382563,1705848641958,-500.0,0.00027945,2]
[312382565,1705848641967,-500.0,0.00027945,2]
[312382567,1705848641975,-500.0,0.00027945,2]
[312382568,1705848641984,-500.0,0.00027945,2]
[312382570,1705848641993,-500.0,0.00027945,2]
[312382571,1705848642002,-500.0,0.00027945,2]
[312382573,1705848642011,-500.0,0.00027945,2]
[312382575,1705848642020,-500.0,0.00027945,2]
[312382576,1705848642029,-725.88,0.00027945,2]
[312382578,1705848642039,-500.0,0.00027945,2]
[312382580,1705848642048,-506.47,0.00027945,2]
[312382581,1705848642058,-500.0,0.00027945,2]
[312382583,1705848642067,-1116.87,0.00027945,2]
[312382584,1705848642077,-500.0,0.00027945,2]
[312382586,1705848642086,-500.0,0.00027945,2]
[312382588,1705848642096,-500.0,0.00027945,2]
[312382589,1705848642105,-1290.78,0.00027945,2]
[312382591,1705848642114,-16023.83,0.00027945,2]
[312382593,1705848642122,-500.0,0.00027945,2]
[312382594,1705848642131,-1607.63,0.00027945,2]
[312382596,1705848642140,-3988.49,0.00027945,2]
[312382597,1705848642148,-500.0,0.00027945,2]
[312382599,1705848642158,-500.0,0.00027945,2]
[312382600,1705848642166,-500.0,0.00027945,2]
[312382602,1705848642176,-580.08,0.00027945,2]
[312382604,1705848642185,-500.0,0.00027945,2]
[312382605,1705848642194,-1285.19,0.00027945,2]
[312382607,1705848642204,-4.95321143,0.00027945,2]
[312382614,1705848642294,-495.04678857,0.00027945,2]
[312382618,1705848642303,-338.37315257,0.00027945,2]
[312382727,1705848642793,-291.029,0.00027945,2]
[312382734,1705848642850,-228.79784743,0.00027945,2]
[312382736,1705848642859,-586.76,0.00027945,2]
[312382739,1705848642959,-500.0,0.00027945,2]
[312382740,1705848642990,-500.0,0.00027945,2]
[312382741,1705848642999,-5173.60062569,0.00027945,2]
[312382742,1705848643012,-465.7143465,0.00027945,2]
[312383056,1705848646016,-3894.64502781,0.00027945,2]
[312383058,1705848646026,-500.0,0.00027945,2]
[312383060,1705848646035,-500.0,0.00027945,2]
[312383062,1705848646044,-5454.13,0.00027945,2]
[312383064,1705848646053,-500.0,0.00027945,2]
[312383066,1705848646062,-500.0,0.00027945,2]
[312383068,1705848646072,-500.0,0.00027945,2]
[312383070,1705848646080,-500.0,0.00027945,2]
[312383072,1705848646089,-1315.31,0.00027945,2]
[312383074,1705848646098,-500.0,0.00027945,2]
[312383076,1705848646107,-799.63,0.00027945,2]
[312383077,1705848646116,-687.55,0.00027945,2]
[312383079,1705848646125,-871.22,0.00027945,2]
[312383081,1705848646134,-500.0,0.00027945,2]
[312383083,1705848646143,-971.85,0.00027945,2]
[312383085,1705848646152,-815.18,0.00027945,2]
[312383087,1705848646161,-739.3,0.00027945,2]
[312383089,1705848646170,-3720.64,0.00027945,2]
[312383091,1705848646179,-5927.86,0.00027945,2]
[312383093,1705848646188,-4979.39,0.00027945,2]
[312383095,1705848646197,-500.0,0.00027945,2]
[312383096,1705848646206,-655.0,0.00027945,2]
[312383097,1705848646215,-1985.29,0.00027945,2]
[312383098,1705848646224,-500.0,0.00027945,2]
[312383099,1705848646234,-1138.8,0.00027945,2]
[312383100,1705848646243,-969.69,0.00027945,2]